bitfinex-derivatives/quotes_SOLF0:USTF0_20241120
["timestamp","ask_amount","ask_price","bid_price","bid_amount"]
[1732069812622,2.88,234.13,233.96,16.7498833]
[1732069812828,2.88,234.13,233.96,18.89476808]
[1732069813332,34.3712561,234.31,234.06,2.133]
[1732069813333,16.7498833,234.2,234.06,2.133]
[1732069813527,2.88,234.19,234.06,2.133]
[1732069813727,16.7498833,234.2,234.01,3.0537]
[1732069814029,2.88,234.2,234.08,16.7498833]
[1732069814224,2.88,234.21,234.08,16.7498833]
[1732069814429,2.1319,234.19,234.11,2.1326]
[1732069814623,2.88,234.21,234.08,16.7498833]
[1732069815124,5.0117,234.21,234.13,2.1324]
[1732069815730,5.0117,234.21,234.08,16.7498833]
[1732069815731,2.88,234.22,234.08,16.7498833]
[1732069816323,2.88,234.22,234.15,2.1322]
[1732069816628,2.88,234.23,234.08,16.7498833]
[1732069816830,2.1317,234.22,234.14,2.1323]
[1732069817132,1.5937,234.3,234.08,18.92800992]
[1732069817326,2.88,234.29,234.12,16.7498833]
[1732069817531,2.88,234.29,234.13,3.0115]
[1732069817532,2.1313,234.25,234.13,3.0115]
[1732069818632,2.49082,234.25,234.13,3.0115]
[1732069818827,2.1315,234.24,234.17,2.132]
[1732069819055,2.1315,234.24,234.13,3.0115]
[1732069819056,0.35952,234.25,234.13,3.0115]
[1732069819333,0.35952,234.25,234.13,1.4677]
[1732069820135,3.23952,234.25,234.13,1.4677]
[1732069820934,5.37092,234.25,234.18,2.1319]
[1732069821133,3.23952,234.25,234.13,1.4677]
[1732069822330,3.23952,234.25,234.07,16.7498833]
[1732069823237,2.1319,234.19,234.12,2.1324]
[1732069823634,3.23952,234.25,234.12,2.1324]
[1732069824132,0.35952,234.25,234.07,16.7498833]
[1732069824334,3.23952,234.25,234.11,16.7498833]
[1732069824638,3.23952,234.25,234.16,2.1321]
[1732069825037,3.23952,234.25,234.11,16.7498833]
[1732069825436,3.23952,234.25,234.17,2.132]
[1732069826336,2.1314,234.24,234.17,2.132]
[1732069826634,16.7498833,234.23,234.05,5.40598533]
[1732069826834,3.23952,234.25,233.97,5.40747281]
[1732069826835,16.7498833,234.15,233.97,5.40747281]
[1732069827140,16.7498833,234.15,233.81,5.89770217]
[1732069827141,16.7498833,234.06,233.9,2.1345]
[1732069827336,2.88,234.05,233.9,2.1345]
[1732069827534,2.1335,234.02,233.88,16.7498833]
[1732069827735,2.88,234.05,233.94,2.1341]
[1732069828836,2.88,234.05,233.88,19.6298833]
[1732069829037,2.88,234.05,233.95,2.134]
[1732069829241,2.1331,234.06,233.92,16.7498833]
[1732069829441,2.88,234.08,233.92,16.7498833]
[1732069829741,2.88,234.08,233.96,2.1339]
[1732069830440,2.88,234.08,233.97,2.1338]
[1732069830640,2.88,234.08,233.92,16.7498833]
[1732069830841,5.6136,234.14,233.93,1.5795]
[1732069831035,2.1326,234.12,234.02,2.1334]
[1732069831234,4.6136,234.14,233.98,2.88]
[1732069832542,2.1328,234.09,234.01,2.1335]
[1732069832742,4.6136,234.14,233.98,2.88]
[1732069833139,4.6136,234.14,234.0,16.7498833]
[1732069833342,2.1326,234.12,234.04,2.1332]
[1732069833644,16.7498833,234.08,233.8,2.88]
[1732069833939,2.88,234.07,233.9,1.6352]
[1732069834337,2.1335,234.01,233.93,2.1342]
[1732069834742,2.88,234.07,233.9,1.6352]
[1732069834937,2.88,234.07,233.94,2.1341]
[1732069834938,2.1334,234.02,233.94,2.1341]
[1732069835945,2.1334,234.02,233.95,2.134]
[1732069836244,2.1333,234.04,233.95,2.134]
[1732069836443,16.7498833,234.12,233.98,2.1338]
[1732069836638,2.88,234.11,233.98,2.1338]
[1732069836843,2.1332,234.05,233.98,2.1338]
[1732069837242,16.7498833,234.12,233.92,19.6298833]
[1732069837543,2.88,234.12,234.01,2.1334]
[1732069837845,16.7498833,234.08,233.9,2.11201449]
[1732069838239,2.1338,233.98,233.9,2.11201449]
[1732069838444,2.1338,233.98,233.89,1.5079]
[1732069838640,2.88,234.0,233.9,2.1345]
[1732069838844,2.1339,233.97,233.9,2.1345]
[1732069839951,2.88,234.0,233.93,2.1342]
[1732069840849,5.0136,234.0,233.89,1.5079]
[1732069841843,5.05139875,234.0,233.78,2.1163077]
[1732069842147,18.2960833,233.99,233.76,16.7498833]
[1732069842346,18.2960833,233.99,233.82,2.1352]
[1732069842648,2.1343,233.93,233.76,16.7498833]
[1732069842848,5.2543,233.93,233.76,19.8698833]
[1732069843047,16.7498833,233.87,233.47,5.89770217]
[1732069843249,16.7498833,233.83,233.63,16.7498833]
[1732069843449,3.12,233.82,233.68,2.1365]
[1732069843648,2.1362,233.72,233.62,1.5865]
[1732069843844,3.12,233.75,233.61,3.1383]
[1732069844048,1.4893,233.74,233.61,3.1383]
[1732069844244,1.4893,233.74,233.57,3.12]
[1732069844548,18.2391833,233.74,233.57,3.12]
[1732069844944,2.1363,233.71,233.6,2.1372]
[1732069845147,18.2391833,233.74,233.6,2.1372]
[1732069845344,1.4893,233.74,233.55,16.7498833]
[1732069845550,16.7498833,233.82,233.6,16.7498833]
[1732069845751,3.34,233.81,233.58,3.34]
[1732069845949,3.34,233.81,233.6,16.7498833]
[1732069846144,2.1359,233.76,233.6,16.7498833]
[1732069846349,3.34,233.81,233.6,16.7498833]
[1732069847046,2.1358,233.77,233.68,2.1365]
[1732069847247,12.76,233.76,233.3,5.89770217]
[1732069847448,16.7498833,233.75,233.54,16.7498833]
[1732069847655,2.1363,233.71,233.61,2.1371]
[1732069848054,3.34,233.74,233.55,1.6267]
[1732069848247,2.1364,233.7,233.61,2.1371]
[1732069849253,4.677,233.73,233.57,2.1375]
[1732069850048,2.1367,233.67,233.58,2.1374]
[1732069850246,3.34,233.7,233.55,1.6267]
[1732069850452,3.34,233.7,233.56,0.78550155]
[1732069851353,3.1785,233.73,233.58,16.7498833]
[1732069851851,3.1785,233.73,233.65,2.1367]
[1732069852051,3.1785,233.73,233.58,16.7498833]
[1732069852251,1.6082,233.73,233.59,0.78540941]
[1732069852552,1.0,233.8,233.66,16.7498833]
[1732069852753,4.9759,233.92,233.7,16.7498833]
[1732069852949,16.7498833,233.86,233.67,3.34]
[1732069854156,16.7498833,233.86,233.62,20.0898833]
[1732069855260,2.1358,233.77,233.62,20.0898833]
[1732069855456,16.7498833,233.78,233.37,2.10584467]
[1732069855762,16.7498833,233.74,233.54,16.7498833]
[1732069856056,16.7498833,233.74,233.59,2.1373]
[1732069856660,2.1366,233.68,233.59,2.1373]
[1732069856860,3.56,233.73,233.56,16.7498833]
[1732069857063,2.1364,233.7,233.62,2.1371]
[1732069857356,3.0209,233.76,233.56,16.7498833]
[1732069857560,3.0209,233.76,233.64,2.1369]
[1732069857561,2.1362,233.72,233.64,2.1369]
[1732069858061,3.56,233.75,233.63,2.1369]
[1732069858062,2.1363,233.71,233.63,2.1369]
[1732069858254,3.56,233.75,233.57,3.56]
[1732069858659,3.56,233.75,233.58,0.78543548]
[1732069858860,3.56,233.75,233.66,2.1367]
[1732069859065,3.0209,233.76,233.66,2.1367]
[1732069859259,6.5809,233.76,233.6,16.7498833]
[1732069859465,2.1359,233.75,233.67,2.1366]
[1732069859664,6.5809,233.76,233.67,2.1366]
[1732069860260,6.5809,233.76,233.68,2.1365]
[1732069860261,8.7168,233.76,233.68,2.1365]
[1732069860467,6.5809,233.76,233.68,2.1365]
[1732069860667,6.5809,233.76,233.61,3.1745]
[1732069860862,8.7167,233.76,233.61,3.1745]
[1732069862168,2.136,233.74,233.61,3.1745]
[1732069863369,6.5809,233.76,233.67,2.1366]
[1732069863768,5.0666,233.76,233.61,3.1745]
[1732069863968,1.5066,233.76,233.7,2.1363]
[1732069864269,2.1357,233.77,233.7,2.1363]
[1732069864665,3.56,233.79,233.64,16.7498833]
[1732069864872,3.56,233.79,233.65,1.5939]
[1732069865367,5.6955,233.79,233.72,2.1361]
[1732069866167,2.1353,233.82,233.74,2.1359]
[1732069866569,6.6867,233.83,233.65,5.1539]
[1732069866762,6.6867,233.83,233.65,1.5939]
[1732069866966,16.7498833,233.79,233.65,1.5939]
[1732069867172,6.6867,233.83,233.65,1.5939]
[1732069867373,6.6867,233.83,233.73,2.1361]
[1732069867670,6.6867,233.83,233.65,1.5939]
[1732069867872,6.6867,233.83,233.68,16.7498833]
[1732069867873,3.1267,233.83,233.68,16.7498833]
[1732069868666,2.1353,233.82,233.76,2.1358]
[1732069868869,0.47949,233.84,233.72,16.7498833]
[1732069869078,0.47949,233.84,233.73,1.4863]
[1732069869874,0.47949,233.84,233.77,2.1357]
[1732069870080,0.47949,233.84,233.73,1.4863]
[1732069870787,2.1354,233.81,233.75,2.1359]
[1732069871485,0.47949,233.84,233.73,1.4863]
[1732069871688,2.1354,233.8,233.74,2.1359]
[1732069871883,2.1354,233.8,233.73,1.4863]
[1732069871884,0.47949,233.84,233.73,1.4863]
[1732069872084,0.47949,233.84,233.79,2.1355]
[1732069872285,0.47949,233.84,233.73,1.4863]
[1732069872488,0.47949,233.84,233.74,1.4878]
[1732069872982,0.47949,233.84,233.8,2.1354]
[1732069873184,0.47949,233.84,233.74,1.4878]
[1732069873784,0.47949,233.84,233.73,1.4863]
[1732069875387,2.1355,233.8,233.74,2.136]
[1732069876291,2.1353,233.82,233.76,2.1357]
[1732069877183,16.7498833,233.86,233.73,1.4863]
[1732069877184,2.1355,233.8,233.74,2.1359]
[1732069877389,1.4941,233.85,233.66,1.4878]
[1732069877585,16.7498833,233.82,233.66,6.5373]
[1732069877785,2.1359,233.75,233.69,2.1364]
[1732069878490,2.1358,233.76,233.7,2.1363]
[1732069878689,1.5992,233.81,233.66,2.9773]
[1732069879489,1.5992,233.81,233.66,1.4895]
[1732069879984,1.5992,233.81,233.64,16.7498833]
[1732069880183,1.5992,233.81,233.67,2.1366]
[1732069880882,2.1361,233.73,233.67,2.1366]
[1732069881490,2.1362,233.72,233.67,2.1366]
[1732069881988,2.136,233.74,233.68,2.1365]
[1732069882186,2.136,233.74,233.64,16.7498833]
[1732069883192,1.5992,233.81,233.64,16.7498833]
[1732069883697,1.5992,233.81,233.69,2.1364]
[1732069884391,2.1359,233.75,233.69,2.1364]
[1732069885995,2.1358,233.76,233.65,3.34]
[1732069886492,2.1358,233.77,233.69,2.1363]
[1732069886693,16.7498833,233.79,233.61,1.6341]
[1732069887094,1.5992,233.81,233.59,2.1373]
[1732069887095,2.1368,233.66,233.59,2.1373]
[1732069887291,2.1368,233.66,233.58,3.0312]
[1732069887691,2.1368,233.66,233.61,2.1372]
[1732069888797,3.34,233.72,233.61,2.1372]
[1732069889096,16.7498833,233.71,233.52,1.5632]
[1732069889400,2.1372,233.61,233.52,3.0844]
[1732069889696,18.3175833,233.71,233.52,3.0844]
[1732069889697,3.34,233.64,233.52,1.5212]
[1732069889897,3.34,233.63,233.48,1.5691]
[1732069890093,4.9145,233.63,233.48,3.7075]
[1732069890795,12.76,233.62,233.27,5.89770217]
[1732069890996,16.7498833,233.51,233.21,1.5691]
[1732069891295,2.139,233.41,233.29,16.7498833]
[1732069891497,3.34,233.43,233.29,16.7498833]
[1732069891700,3.34,233.42,233.21,1.5691]
[1732069891999,16.7498833,233.47,233.27,2.1402]
[1732069892000,2.1393,233.38,233.27,2.1402]
[1732069892601,2.1391,233.4,233.29,2.14]
[1732069892792,3.54,233.41,233.25,16.7498833]
[1732069892995,3.54,233.41,233.29,16.7498833]
[1732069893397,3.54,233.41,233.25,16.7498833]
[1732069894004,2.1395,233.36,233.25,16.7498833]
[1732069894697,3.54,233.4,233.25,16.7498833]
[1732069895194,3.54,233.4,233.29,16.7498833]
[1732069896300,5.6791,233.4,233.29,18.8898833]
[1732069896598,3.54,233.44,233.29,16.7498833]
[1732069897297,2.139,233.41,233.31,2.1399]
[1732069897497,3.54,233.44,233.31,2.1399]
[1732069899303,2.1391,233.4,233.31,2.1399]
[1732069900109,2.1387,233.45,233.33,16.7498833]
[1732069900400,5.7278,233.5,233.37,16.7498833]
[1732069900401,9.2678,233.5,233.37,16.7498833]
[1732069901301,2.1385,233.47,233.38,2.1392]
[1732069901498,8.2678,233.5,233.37,16.7498833]
[1732069902204,2.1384,233.48,233.39,2.1392]
[1732069903305,8.2678,233.5,233.37,2.1393]
[1732069903502,8.2678,233.5,233.33,21.5180833]
[1732069903803,2.1388,233.44,233.33,4.7682]
[1732069904008,3.54,233.43,233.33,4.7682]
[1732069905210,2.1391,233.4,233.33,4.7682]
[1732069905805,2.1391,233.41,233.33,6.9079]
[1732069906011,3.54,233.43,233.33,6.9079]
[1732069906704,3.54,233.43,233.33,4.7682]
[1732069906909,2.139,233.42,233.35,2.1395]
[1732069908611,2.139,233.41,233.35,2.1395]
[1732069909703,3.54,233.46,233.33,4.7682]
[1732069909908,4.7278,233.5,233.33,8.1082]
[1732069911207,2.1386,233.46,233.39,2.1392]
[1732069914212,2.1386,233.46,233.4,2.1391]
[1732069914412,4.7278,233.5,233.33,8.1082]
[1732069915513,2.1387,233.45,233.39,2.1392]
[1732069917513,16.7498833,233.52,233.33,8.1082]
[1732069917815,3.34,233.55,233.42,2.1389]
[1732069918814,2.1383,233.49,233.42,2.1389]
[1732069919612,2.1383,233.49,233.36,16.7498833]
[1732069920723,3.34,233.55,233.36,20.0898833]
[1732069921224,2.1388,233.44,233.33,4.7682]
[1732069921419,3.34,233.45,233.33,4.7682]
[1732069922024,3.34,233.45,233.26,16.7498833]
[1732069922222,16.7498833,233.44,233.26,6.4191]
[1732069922526,2.1395,233.36,233.3,2.14]
[1732069926222,16.7498833,233.44,233.26,3.0791]
[1732069926826,2.139,233.41,233.26,19.8289833]
[1732069927123,16.7498833,233.44,233.26,19.8289833]
[1732069927519,2.1392,233.39,233.33,2.1397]
[1732069927726,2.1392,233.39,233.26,19.8289833]
[1732069928122,2.1392,233.39,233.34,2.1396]
[1732069928520,16.7498833,233.44,233.34,2.1396]
[1732069929729,16.7498833,233.44,233.26,19.8289833]
[1732069930328,2.1391,233.41,233.34,2.1396]
[1732069931128,10.5664354,233.43,233.3,3.34]
[1732069931326,2.1389,233.42,233.3,13.9064354]
[1732069931526,10.5664354,233.46,233.3,15.99709093]
[1732069932426,2.1388,233.44,233.38,2.1392]
[1732069933030,10.5664354,233.46,233.3,15.99709093]
[1732069934829,2.1388,233.44,233.37,2.1393]
[1732069935221,10.5664354,233.46,233.37,2.1393]
[1732069935423,10.5664354,233.46,233.3,15.99709093]
[1732069935424,10.5664354,233.46,233.35,2.1395]
[1732069936227,3.1425,233.47,233.34,2.1396]
[1732069936228,2.1391,233.4,233.34,2.1396]
[1732069936632,10.5664354,233.43,233.34,2.1396]
[1732069937429,2.139,233.41,233.35,2.1395]
[1732069937833,10.5664354,233.43,233.3,3.34]
[1732069938230,10.5664354,233.43,233.32,2.1398]
[1732069938729,10.5664354,233.43,233.3,3.34]
[1732069939035,2.1392,233.39,233.33,2.1397]
[1732069940025,2.1392,233.39,233.34,2.1396]
[1732069942936,2.1392,233.39,233.26,3.0791]
[1732069942937,10.5664354,233.4,233.26,3.0791]
[1732069943136,10.5664354,233.43,233.27,13.7264354]
[1732069943535,10.5664354,233.35,233.11,23.59080868]
[1732069943833,10.5664354,233.32,233.17,3.0204]
[1732069944032,13.7264354,233.32,233.17,3.0204]
[1732069944433,2.1404,233.26,233.18,2.141]
[1732069944941,2.1404,233.26,233.17,3.0204]
[1732069945140,10.5664354,233.29,233.17,5.1615]
[1732069945639,2.1405,233.25,233.17,5.1615]
[1732069946839,10.5664354,233.29,233.17,5.1615]
[1732069947536,10.5664354,233.29,233.17,3.6281]
[1732069948341,2.1405,233.25,233.17,3.6281]
[1732069949343,10.5664354,233.19,233.03,10.5664354]
[1732069949547,7.8484,233.18,233.03,10.5664354]
[1732069950145,9.98195433,233.18,233.03,10.5664354]
[1732069950445,9.98195433,233.18,233.03,12.7089354]
[1732069950446,2.1417,233.12,233.03,12.7089354]
[1732069950647,7.8484,233.18,233.03,10.5664354]
[1732069950943,7.8484,233.18,232.98,4.5205]
[1732069950944,7.8484,233.18,232.99,3.16]
[1732069951250,10.5664354,233.16,233.01,10.5664354]
[1732069952351,7.8484,233.18,233.01,10.5664354]
[1732069952562,4.6884,233.18,233.04,10.5664354]
[1732069952743,2.1412,233.17,233.1,2.1418]
[1732069956850,2.1413,233.16,233.08,2.142]
[1732069957054,2.1413,233.16,233.04,10.5664354]
[1732069957251,1.4993,233.26,233.07,10.5664354]
[1732069957252,3.16,233.21,233.07,10.5664354]
[1732069957449,3.16,233.21,233.08,1.6154]
[1732069957858,2.141,233.19,233.12,2.1416]
[1732069958149,10.5664354,233.19,233.08,1.6154]
[1732069959555,10.5664354,233.19,233.04,10.5664354]
[1732069959754,3.16,233.21,233.01,10.5664354]
[1732069959755,10.5664354,233.16,233.01,10.5664354]
[1732069960055,2.1416,233.13,233.06,2.1422]
[1732069960850,2.1417,233.12,233.04,2.1423]
[1732069961158,10.5664354,233.13,233.04,2.1423]
[1732069961454,10.5664354,233.13,233.0,4.7754]
[1732069961654,2.1418,233.11,233.0,4.7754]
[1732069963253,2.1418,233.11,233.03,2.1425]
[1732069963849,3.16,233.14,233.01,10.5664354]
[1732069964045,2.1416,233.13,233.05,2.1423]
[1732069964353,3.16,233.14,233.05,2.1423]
[1732069964754,3.16,233.14,233.01,10.5664354]
[1732069964957,2.1416,233.13,233.01,10.5664354]
[1732069965455,2.1417,233.12,233.05,2.1422]
[1732069965871,3.16,233.14,233.01,10.5664354]
[1732069966052,2.1416,233.13,233.06,2.1422]
[1732069966259,3.16,233.14,233.06,2.1422]
[1732069966654,2.1417,233.12,233.06,2.1422]
[1732069966957,2.1417,233.12,233.01,10.5664354]
[1732069967157,2.1417,233.12,233.05,2.1423]
[1732069967458,2.1417,233.12,233.01,10.5664354]
[1732069967653,2.1417,233.12,233.06,2.1422]
[1732069969754,13.7264354,233.14,233.0,1.6154]
[1732069969755,10.5664354,233.11,233.0,1.6154]
[1732069970457,10.5664354,233.11,233.01,2.1427]
[1732069970858,10.5664354,233.11,233.0,1.6154]
[1732069971053,2.1421,233.08,233.01,2.1427]
[1732069971356,10.5664354,233.11,233.01,2.1427]
[1732069972052,10.5664354,233.11,232.96,10.5664354]
[1732069972359,2.1424,233.04,232.98,2.1429]
[1732069972554,10.5664354,233.08,232.93,10.5664354]
[1732069972555,10.5664354,233.08,232.93,12.1030354]
[1732069972758,3.08,233.07,232.93,12.1030354]
[1732069972958,2.1426,233.02,232.96,2.1431]
[1732069973356,3.08,233.07,232.93,12.1030354]
[1732069974260,2.1425,233.03,232.97,2.143]
[1732069974559,3.08,233.07,232.93,12.1030354]
[1732069974863,3.08,233.07,232.96,10.5664354]
[1732069974864,2.1423,233.06,232.96,10.5664354]
[1732069975559,2.1423,233.06,233.0,2.1427]
[1732069977366,2.1421,233.08,232.96,10.5664354]
[1732069977562,3.08,233.1,232.93,1.5366]
[1732069977864,3.08,233.11,232.97,10.5664354]
[1732069978864,2.1421,233.07,232.96,10.5664354]
[1732069979454,2.1421,233.07,233.01,2.1426]
[1732069979855,13.6464354,233.11,232.96,10.5664354]
[1732069980060,3.08,233.11,233.02,2.1426]
[1732069980561,2.1419,233.09,233.04,2.1424]
[1732069980867,2.1419,233.09,232.99,10.5664354]
[1732069981158,2.1419,233.09,233.03,2.1425]
[1732069981393,2.1419,233.09,232.99,10.5664354]
[1732069981559,3.08,233.13,233.02,10.5664354]
[1732069981759,2.1414,233.16,233.09,2.1418]
[1732069981956,0.70398,233.19,233.05,10.5664354]
[1732069982564,2.1414,233.14,233.05,10.5664354]
[1732069982758,6.77760305,233.12,232.97,3.08]
[1732069982963,2.142,233.08,233.03,6.77760305]
[1732069984363,2.1419,233.09,233.03,6.77760305]
[1732069985263,2.1418,233.11,233.05,6.77760305]
[1732069985664,1.4747,233.17,233.07,6.77760305]
[1732069985665,6.77760305,233.15,233.07,6.77760305]
[1732069985968,9.85760305,233.15,233.07,6.77760305]
[1732069986163,3.08,233.15,233.09,6.77760305]
[1732069986368,8.25230305,233.17,233.09,6.77760305]
[1732069986569,2.1413,233.13,233.09,6.77760305]
[1732069986868,8.25230305,233.17,233.09,6.77760305]
[1732069987064,8.25230305,233.17,233.09,8.91930305]
[1732069987373,8.25230305,233.17,233.09,6.77760305]
[1732069987569,2.1413,233.14,233.09,6.77760305]
[1732069987971,1.4747,233.17,233.11,6.77760305]
[1732069988270,0.70398,233.19,233.13,6.77760305]
[1732069989066,0.70398,233.19,233.11,6.77760305]
[1732069990163,35.88000091,233.34,233.17,6.77760305]
[1732069990369,6.77760305,233.37,233.3,6.77760305]
[1732069991560,9.92710305,233.4,233.32,6.77760305]
[1732069992564,9.92710305,233.4,233.34,6.77760305]
[1732069992565,3.1495,233.4,233.34,6.77760305]
[1732069992762,3.1495,233.4,233.31,10.5688018]
[1732069993373,2.1393,233.36,233.31,10.5688018]
[1732069994971,2.18205995,233.38,233.24,10.5688018]
[1732069995368,2.1399,233.29,233.24,10.5688018]
[1732069995766,2.92,233.36,233.27,10.5688018]
[1732069995963,2.92,233.36,233.3,10.5688018]
[1732069996866,2.1396,233.33,233.3,10.5688018]
[1732069997068,2.92,233.36,233.3,10.5688018]
[1732069997464,2.92,233.36,233.27,10.5688018]
[1732069998066,2.1398,233.3,233.27,10.5688018]
[1732069998270,2.92,233.36,233.27,10.5688018]
[1732069998773,2.1395,233.34,233.27,10.5688018]
[1732069999069,2.1395,233.34,233.19,1.605]
[1732069999070,2.92,233.36,233.24,10.5688018]
[1732069999266,2.1404,233.23,233.21,10.5688018]
[1732069999862,2.92,233.29,233.18,10.5688018]
[1732070000671,2.1407,233.2,233.18,10.5688018]
[1732070003573,2.1406,233.22,233.18,10.5688018]
[1732070003777,2.1406,233.22,233.21,10.5688018]
[1732070004074,4.6709,233.28,233.18,10.5688018]
[1732070004270,2.1408,233.2,233.18,10.5688018]
[1732070004873,2.1411,233.16,233.15,10.5688018]
[1732070005072,2.92,233.22,233.09,10.5688018]
[1732070005373,4.6709,233.28,233.09,10.5688018]
[1732070005374,5.01391928,233.21,233.09,10.5688018]
[1732070005573,2.92,233.2,233.09,10.5688018]
[1732070006369,2.92,233.2,233.06,10.5688018]
[1732070007167,2.1419,233.07,233.06,10.5688018]
[1732070007570,2.92,233.12,233.03,10.5688018]
[1732070007877,2.1423,233.04,233.03,10.5688018]
[1732070008574,2.92,233.12,233.03,10.5688018]
[1732070009273,2.142,233.06,233.03,10.5688018]
[1732070010778,2.142,233.07,233.03,10.5688018]
[1732070011975,2.1418,233.09,233.06,10.5688018]
[1732070012177,2.92,233.12,233.06,10.5688018]
[1732070012479,2.1419,233.08,233.06,10.5688018]
[1732070013577,2.92,233.12,233.06,10.5688018]
[1732070013772,4.5888,233.17,233.09,10.5688018]
[1732070014781,4.5888,233.17,233.06,10.5688018]
[1732070015279,7.5088,233.17,233.06,10.5688018]
[1732070015882,2.1418,233.08,233.06,10.5688018]
[1732070016381,7.5088,233.17,232.99,2.92]
[1732070016578,7.5088,233.17,233.04,10.5688018]
[1732070017088,2.142,233.06,233.04,10.5688018]
[1732070017382,7.5088,233.17,233.04,10.5688018]
[1732070017577,7.5088,233.17,233.07,10.5688018]
[1732070018085,2.1417,233.09,233.07,10.5688018]
[1732070019582,7.5088,233.17,233.07,10.5688018]
[1732070019883,7.5088,233.17,232.97,4.7875]
[1732070019884,7.5088,233.17,233.01,10.5688018]
[1732070020077,10.5688018,233.16,233.01,10.5688018]
[1732070020277,2.1415,233.12,233.01,10.5688018]
[1732070020486,10.5688018,233.16,233.01,10.5688018]
[1732070021086,2.1422,233.04,233.01,10.5688018]
[1732070021779,10.5688018,233.16,233.01,10.5688018]
[1732070022578,2.1423,233.04,233.01,10.5688018]
[1732070022787,2.92,233.1,233.01,10.5688018]
[1732070023182,2.1419,233.08,233.01,10.5688018]
[1732070023482,2.92,233.1,233.01,10.5688018]
[1732070023784,2.1419,233.08,233.01,10.5688018]
[1732070023986,2.92,233.1,233.01,10.5688018]
[1732070024186,10.5688018,233.16,233.01,10.5688018]
[1732070024386,2.1416,233.11,233.01,10.5688018]
[1732070024583,2.92,233.15,233.01,12.7112018]
[1732070024784,2.92,233.14,233.04,10.5688018]
[1732070024981,2.92,233.15,233.04,10.5688018]
[1732070025387,2.92,233.15,233.07,10.5688018]
[1732070025984,2.92,233.17,233.07,10.5688018]
[1732070027388,2.1417,233.1,233.07,10.5688018]
[1732070028293,2.1414,233.13,233.07,10.5688018]
[1732070028495,2.1414,233.13,233.1,10.5688018]
[1732070028801,2.92,233.17,233.1,10.5688018]
[1732070029195,4.7063,233.22,233.1,10.5688018]
[1732070029396,2.1413,233.14,233.1,12.7104018]
[1732070031891,4.7063,233.22,233.1,12.7104018]
[1732070032095,2.1412,233.15,233.1,12.7104018]
[1732070033997,2.92,233.21,233.1,12.7104018]
[1732070035302,10.5688018,233.2,232.97,4.7875]
[1732070035501,10.5688018,233.2,233.06,10.5688018]
[1732070036297,10.5688018,233.2,233.06,12.7108018]
[1732070036298,2.1411,233.16,233.06,12.7108018]
[1732070036504,2.92,233.21,233.09,10.5688018]
[1732070037002,2.1415,233.12,233.09,10.5688018]
[1732070037303,4.7063,233.22,233.09,10.5688018]
[1732070037604,4.7063,233.22,233.12,10.5688018]
[1732070037605,7.6263,233.22,233.12,10.5688018]
[1732070038007,2.1408,233.19,233.12,10.5688018]
[1732070038306,7.6263,233.22,233.12,10.5688018]
[1732070039200,2.1412,233.15,233.12,10.5688018]
[1732070039706,7.6263,233.22,233.12,10.5688018]
[1732070040701,2.1413,233.14,233.12,10.5688018]
[1732070040906,7.6263,233.22,233.12,10.5688018]
[1732070041306,2.1413,233.14,233.12,10.5688018]
[1732070042008,2.92,233.26,233.12,10.5688018]
[1732070042203,2.92,233.26,233.18,10.5688018]
[1732070042906,2.10931387,233.25,233.12,10.5688018]
[1732070043500,2.1413,233.14,233.12,10.5688018]
[1732070044408,2.1413,233.14,233.09,2.1416]
[1732070044609,2.1413,233.14,233.12,10.5688018]
[1732070045204,2.1414,233.13,233.12,10.5688018]
[1732070045601,2.10931387,233.25,233.12,10.5688018]
[1732070046404,2.1413,233.14,233.12,10.5688018]
[1732070047411,10.5688018,233.17,232.82,70.77242606]
[1732070047711,2.92,233.16,233.02,10.5688018]